fUSD/lending_fUSD_20251026
["ID","MTS","AMOUNT","RATE_DAILY","PERIOD"]
[392420818,1761456664566,-500.0,0.00034786,7]
[392420819,1761456664576,-1511.9,0.00034794,2]
[392420820,1761456664585,-500.0,0.00034794,9]
[392420821,1761456664595,-500.0,0.00034794,9]
[392420822,1761456664604,-419.05070052,0.00034794,9]
[392420823,1761456664613,-204.37294167,0.00034794,9]
[392420824,1761456664623,-500.0,0.00034794,9]
[392420825,1761456664632,-500.0,0.00034794,9]
[392420826,1761456664642,-500.0,0.00034794,9]
[392420827,1761456664651,-500.0,0.00034794,9]
[392420828,1761456664661,-1799.53,0.00034794,9]
[392420829,1761456664671,-267.36403142,0.00034794,9]
[392420830,1761456664681,-619.52,0.00034794,9]
[392420831,1761456664690,-500.0,0.00034794,9]
[392420832,1761456664699,-500.0,0.00034794,9]
[392420833,1761456664709,-500.0,0.00034794,9]
[392420834,1761456664718,-500.0,0.00034794,9]
[392420835,1761456664728,-500.0,0.00034794,9]
[392420836,1761456664737,-500.0,0.00034794,9]
[392420837,1761456664747,-500.0,0.000348,7]
[392420838,1761456664757,-4056.43678105,0.00034813,2]
[392420839,1761456664767,-250.0,0.00034821,5]
[392420840,1761456664776,-500.0,0.00034843,7]
[392420841,1761456664786,-500.0,0.00034863,7]
[392420842,1761456664796,-500.0,0.00034879,9]
[392420843,1761456664806,-500.0,0.00034879,9]
[392420844,1761456664815,-500.0,0.00034879,9]
[392420845,1761456664825,-699.08,0.00034879,9]
[392420846,1761456664834,-1000.0,0.00034882,2]
[392420847,1761456664844,-278.06977588,0.00034886,7]
[392420848,1761456664853,-528.59706483,0.000349,2]
[392420849,1761456664863,-238.86,0.000349,30]
[392420850,1761456664872,-3600.0,0.000349,12]
[392420851,1761456664883,-500.0,0.00034906,9]
[392420852,1761456664892,-500.0,0.00034906,9]
[392420853,1761456664903,-500.0,0.00034906,9]
[392420854,1761456664912,-500.0,0.00034906,9]
[392420855,1761456664922,-500.0,0.00034906,9]
[392420856,1761456664933,-500.0,0.00034906,9]
[392420857,1761456664943,-500.0,0.00034906,9]
[392420858,1761456664953,-500.0,0.00034906,9]
[392420859,1761456664963,-500.0,0.00034906,9]
[392420860,1761456664973,-500.0,0.00034906,9]
[392420861,1761456664982,-500.0,0.00034906,9]
[392420862,1761456664994,-500.0,0.00034906,9]
[392420863,1761456665004,-500.0,0.00034906,9]
[392420864,1761456665014,-500.0,0.00034907,9]
[392420865,1761456665024,-367.31227088,0.00034907,9]
[392420866,1761456665035,-500.0,0.00034907,9]
[392420867,1761456665044,-500.0,0.00034907,9]
[392420868,1761456665054,-410.51174852,0.00034907,9]
[392420869,1761456665064,-500.0,0.00034907,9]
[392420870,1761456665074,-500.0,0.00034907,9]
[392420871,1761456665083,-500.0,0.00034907,9]
[392420872,1761456665094,-500.0,0.00034907,9]
[392420873,1761456665104,-500.0,0.00034907,9]
[392420874,1761456665114,-421.88712058,0.00034907,9]
[392420875,1761456665123,-500.0,0.00034907,9]
[392420876,1761456665132,-573.91,0.00034907,9]
[392420877,1761456665143,-500.0,0.00034907,9]
[392420878,1761456665152,-500.0,0.00034907,9]
[392420879,1761456665164,-500.0,0.00034907,9]
[392420880,1761456665173,-500.0,0.00034907,9]
[392420881,1761456665187,-500.0,0.00034907,9]
[392420882,1761456665198,-500.0,0.00034907,9]
[392420883,1761456665208,-2845.72,0.00034907,9]
[392420884,1761456665218,-2885.33,0.00034907,2]
[392420885,1761456665228,-500.0,0.00034907,9]
[392420886,1761456665239,-500.0,0.00034907,9]
[392420887,1761456665249,-500.0,0.00034907,9]
[392420888,1761456665258,-764.0,0.00034907,9]
[392420889,1761456665268,-500.0,0.00034907,9]
[392420890,1761456665277,-509.33,0.00034907,9]
[392420891,1761456665288,-500.0,0.00034914,9]
[392420892,1761456665298,-500.0,0.00034914,9]
[392420893,1761456665308,-500.0,0.00034914,9]
[392420894,1761456665318,-500.0,0.00034914,9]
[392420895,1761456665329,-500.0,0.00034914,9]
[392420896,1761456665339,-500.0,0.00034914,9]
[392420897,1761456665349,-500.0,0.00034914,9]
[392420898,1761456665358,-500.0,0.00034914,9]
[392420899,1761456665368,-500.0,0.00034914,9]
[392420900,1761456665377,-500.0,0.00034914,9]
[392420901,1761456665387,-500.0,0.00034914,9]
[392420902,1761456665396,-500.0,0.00034914,9]
[392420903,1761456665406,-500.0,0.00034914,9]
[392420904,1761456665415,-500.0,0.00034914,9]
[392420905,1761456665425,-500.0,0.00034914,9]
[392420906,1761456665435,-500.0,0.00034914,9]
[392420907,1761456665444,-500.0,0.00034914,9]
[392420908,1761456665454,-500.0,0.00034914,9]
[392420909,1761456665464,-500.0,0.00034914,9]
[392420910,1761456665473,-500.0,0.00034914,9]
[392420911,1761456665483,-500.0,0.00034914,9]
[392420912,1761456665492,-500.0,0.00034914,9]
[392420913,1761456665503,-287.82458238,0.00034915,9]
[392420914,1761456665512,-500.0,0.00034915,9]
[392420915,1761456665521,-500.0,0.00034915,9]
[392420916,1761456665531,-419.49381339,0.00034915,9]
[392420917,1761456665541,-500.0,0.00034915,9]
[392420918,1761456665550,-500.0,0.00034915,9]
[392420919,1761456665559,-500.0,0.00034915,9]
[392420920,1761456665569,-500.0,0.00034915,9]
[392420921,1761456665580,-500.0,0.00034915,9]
[392420922,1761456665590,-500.0,0.00034915,9]
[392420923,1761456665599,-500.0,0.00034915,9]
[392420924,1761456665609,-500.0,0.00034915,9]
[392420925,1761456665620,-500.0,0.00034915,9]
[392420926,1761456665629,-500.0,0.00034915,9]
[392420927,1761456665639,-500.0,0.00034915,9]
[392420928,1761456665648,-500.0,0.00034915,9]
[392420929,1761456665658,-500.0,0.00034915,9]
[392420930,1761456665667,-500.0,0.00034915,9]
[392420931,1761456665677,-500.0,0.00034915,9]
[392420932,1761456665687,-688.52,0.00034915,9]
[392420933,1761456665696,-500.0,0.00034915,9]
[392420934,1761456665706,-500.0,0.00034915,9]
[392420935,1761456665717,-500.0,0.00034915,9]
[392420936,1761456665727,-486.85449093,0.00034915,9]
[392420937,1761456665738,-531.13,0.00034915,9]
[392420938,1761456665749,-500.0,0.00034915,9]
[392420939,1761456665760,-434.49539868,0.00034915,9]
[392420940,1761456665770,-210.74164167,0.00034915,9]
[392420941,1761456665779,-500.0,0.00034915,9]
[392420942,1761456665788,-500.0,0.00034915,9]
[392420943,1761456665798,-510.02,0.00034915,9]
[392420944,1761456665807,-500.0,0.00034915,9]
[392420945,1761456665817,-500.0,0.00034915,9]
[392420946,1761456665826,-500.0,0.00034915,9]
[392420947,1761456665835,-500.0,0.00034915,9]
[392420948,1761456665845,-500.0,0.00034915,9]
[392420949,1761456665854,-536.81,0.00034915,2]
[392420950,1761456665867,-500.0,0.00034915,9]
[392420951,1761456665877,-500.0,0.00034915,9]
[392420952,1761456665887,-500.0,0.00034915,9]
[392420953,1761456665898,-500.0,0.00034915,2]
[392420954,1761456665907,-500.0,0.00034915,9]
[392420955,1761456665917,-222.08005593,0.00034915,9]
[392420956,1761456665927,-500.0,0.00034915,9]
[392420957,1761456665937,-500.0,0.00034915,9]
[392420958,1761456665949,-500.0,0.00034915,9]
[392420959,1761456665960,-500.0,0.00034915,9]
[392420960,1761456665970,-500.0,0.00034915,9]
[392420961,1761456665980,-500.0,0.00034915,9]
[392420962,1761456665990,-500.0,0.00034915,9]
[392420963,1761456666001,-500.0,0.00034915,9]
[392420964,1761456666124,-752.95,0.00034915,9]
[392420965,1761456666135,-500.0,0.00034915,9]
[392420966,1761456666147,-500.0,0.00034915,9]
[392420967,1761456666156,-500.0,0.00034915,9]
[392420968,1761456666165,-500.0,0.00034915,9]
[392420969,1761456666175,-500.0,0.00034915,9]
[392420970,1761456666187,-154.78487108,0.00034915,9]
[392420971,1761456666197,-500.0,0.00034915,9]
[392420972,1761456666207,-611.66,0.00034915,9]
[392420973,1761456666216,-500.0,0.00034915,9]
[392420974,1761456666226,-500.0,0.00034924,7]
[392420975,1761456666235,-761.83238171,0.00034953,7]
[392420976,1761456666245,-500.0,0.00034985,7]
[392420977,1761456666254,-1000.0,0.00034987,2]
[392420978,1761456666264,-150.0,0.00035,60]
[392420979,1761456666273,-1833.15,0.00035,2]
[392420980,1761456666282,-2000.0,0.00035,2]
[392420981,1761456666291,-2000.0,0.00035,2]
[392420982,1761456666300,-2000.0,0.00035,2]
[392420983,1761456666309,-2000.0,0.00035,2]
[392420984,1761456666318,-2000.0,0.00035,2]
[392420985,1761456666328,-2000.0,0.00035,2]
[392420986,1761456666338,-2000.0,0.00035,2]
[392420987,1761456666347,-2000.0,0.00035,2]
[392420988,1761456666356,-400.60450845,0.00035,2]
[392420989,1761456666365,-1217.19848878,0.00035,2]
[392420990,1761456666374,-350.0,0.00035,30]
[392420991,1761456666383,-150.0,0.00035,2]
[392420992,1761456666392,-153.76004182,0.00035,30]
[392420993,1761456666402,-160.0,0.00035,7]
[392420994,1761456666411,-227.50479729,0.00035,5]
[392420995,1761456666422,-500.0,0.00035002,30]
[392420996,1761456666431,-854.66012803,0.00035023,30]
[392420997,1761456666441,-800.0,0.00035027,5]
[392420998,1761456666451,-507.68870584,0.00035033,2]
[392420999,1761456666460,-505.70594868,0.00035058,30]
[392421000,1761456666468,-802.23228146,0.00035063,30]
[392421001,1761456666478,-1511.9,0.00035068,2]
[392421002,1761456666487,-500.0,0.00035068,9]
[392421003,1761456666496,-622.34052445,0.00035068,9]
[392421004,1761456666505,-500.0,0.00035068,9]
[392421005,1761456666514,-500.0,0.00035068,9]
[392421006,1761456666523,-500.0,0.00035068,9]
[392421007,1761456666534,-500.0,0.00035068,9]
[392421008,1761456666544,-1799.53,0.00035068,9]
[392421009,1761456666554,-619.52,0.00035068,9]
[392421010,1761456666564,-500.0,0.00035068,9]
[392421011,1761456666575,-500.0,0.00035068,9]
[392421012,1761456666585,-627.05929357,0.00035068,9]
[392421013,1761456666595,-500.0,0.00035068,9]
[392421014,1761456666605,-500.0,0.00035068,9]
[392421015,1761456666616,-626.37777704,0.00035068,9]
[392421016,1761456666626,-7004.58342019,0.00035118,2]
[392421017,1761456666637,-500.0,0.00035153,9]
[392421018,1761456666648,-415.96506348,0.00035153,9]
[392421019,1761456666659,-500.0,0.00035153,9]
[392421020,1761456666668,-699.08,0.00035153,9]
[392421021,1761456666678,-582.24121124,0.00035178,30]
[392421022,1761456666687,-500.0,0.00035178,30]
[392421023,1761456666698,-500.0,0.0003518,9]
[392421024,1761456666709,-500.0,0.0003518,9]
[392421025,1761456666718,-500.0,0.0003518,9]
[392421026,1761456666728,-511.81758622,0.0003518,9]
[392421027,1761456666738,-500.0,0.0003518,9]
[392421028,1761456666747,-500.0,0.0003518,9]
[392421029,1761456666757,-500.0,0.0003518,9]
[392421030,1761456666766,-500.0,0.0003518,9]
[392421031,1761456666775,-500.0,0.0003518,9]
[392421032,1761456666785,-500.0,0.0003518,9]
[392421033,1761456666795,-500.0,0.0003518,9]
[392421034,1761456666804,-500.0,0.0003518,9]
[392421035,1761456666814,-500.0,0.0003518,9]
[392421036,1761456666824,-637.18651939,0.00035181,9]
[392421037,1761456666834,-500.0,0.00035181,9]
[392421038,1761456666843,-500.0,0.00035181,9]
[392421039,1761456666853,-500.0,0.00035181,9]
[392421040,1761456666862,-500.0,0.00035181,9]
[392421041,1761456666872,-500.0,0.00035181,9]
[392421042,1761456666881,-294.12329431,0.00035181,9]
[392421043,1761456666891,-500.0,0.00035181,9]
[392421044,1761456666900,-500.0,0.00035181,9]
[392421045,1761456666909,-573.91,0.00035181,9]
[392421046,1761456666918,-500.0,0.00035181,9]
[392421047,1761456666927,-500.0,0.00035181,9]
[392421048,1761456666936,-500.0,0.00035181,9]
[392421049,1761456666946,-500.0,0.00035181,9]
[392421050,1761456666956,-500.0,0.00035181,9]
[392421051,1761456666966,-500.0,0.00035181,9]
[392421052,1761456666975,-2845.72,0.00035181,9]
[392421053,1761456666984,-2885.33,0.00035181,2]
[392421054,1761456666994,-500.0,0.00035181,9]
[392421055,1761456667004,-500.0,0.00035181,9]
[392421056,1761456667014,-500.0,0.00035181,9]
[392421057,1761456667023,-764.0,0.00035181,9]
[392421058,1761456667033,-500.0,0.00035181,9]
[392421059,1761456667043,-509.33,0.00035181,9]
[392421060,1761456667053,-602.68333644,0.00035188,9]
[392421061,1761456667062,-500.0,0.00035188,9]
[392421062,1761456667072,-500.0,0.00035188,9]
[392421063,1761456667080,-500.0,0.00035188,9]
[392421064,1761456667090,-500.0,0.00035188,9]
[392421065,1761456667099,-500.0,0.00035188,9]
[392421066,1761456667108,-500.0,0.00035188,9]
[392421067,1761456667117,-500.0,0.00035188,9]
[392421068,1761456667127,-500.0,0.00035188,9]
[392421069,1761456667137,-312.53179615,0.00035188,9]
[392421070,1761456667146,-500.0,0.00035188,9]
[392421071,1761456667155,-607.54345346,0.00035188,9]
[392421072,1761456667164,-500.0,0.00035188,9]
[392421073,1761456667174,-500.0,0.00035188,9]
[392421074,1761456667187,-500.0,0.00035188,9]
[392421075,1761456667197,-500.0,0.00035188,9]
[392421076,1761456667206,-498.79563835,0.00035188,9]
[392421077,1761456667217,-500.0,0.00035188,9]
[392421078,1761456667226,-500.0,0.00035188,9]
[392421079,1761456667237,-500.0,0.00035188,9]
[392421080,1761456667249,-500.0,0.00035188,9]
[392421081,1761456667258,-500.0,0.00035188,9]
[392421082,1761456667268,-500.0,0.00035189,9]
[392421083,1761456667278,-500.0,0.00035189,9]
[392421084,1761456667286,-500.0,0.00035189,9]
[392421085,1761456667295,-502.9586,0.00035189,9]
[392421086,1761456667305,-500.0,0.00035189,9]
[392421087,1761456667314,-500.0,0.00035189,9]
[392421088,1761456667324,-500.0,0.00035189,9]
[392421089,1761456667332,-500.0,0.00035189,9]
[392421090,1761456667341,-500.0,0.00035189,9]
[392421091,1761456667351,-500.0,0.00035189,9]
[392421092,1761456667359,-500.0,0.00035189,9]
[392421093,1761456667370,-500.0,0.00035189,9]
[392421094,1761456667379,-500.0,0.00035189,9]
[392421095,1761456667387,-500.0,0.00035189,9]
[392421096,1761456667396,-500.0,0.00035189,9]
[392421097,1761456667405,-500.0,0.00035189,9]
[392421098,1761456667414,-500.0,0.00035189,9]
[392421099,1761456667423,-688.52,0.00035189,9]
[392421100,1761456667432,-500.0,0.00035189,9]
[392421101,1761456667441,-500.0,0.00035189,9]
[392421102,1761456667450,-500.0,0.00035189,9]
[392421103,1761456667459,-531.13,0.00035189,9]
[392421104,1761456667468,-500.0,0.00035189,9]
[392421105,1761456667478,-500.0,0.00035189,9]
[392421106,1761456667487,-500.0,0.00035189,9]
[392421107,1761456667496,-510.02,0.00035189,9]
[392421108,1761456667505,-234.03105159,0.00035189,9]
[392421109,1761456667515,-500.0,0.00035189,9]
[392421110,1761456667524,-248.14154095,0.00035189,9]
[392421111,1761456667534,-500.0,0.00035189,9]
[392421112,1761456667543,-213.52847824,0.00035189,9]
[392421113,1761456667553,-536.81,0.00035189,2]
[392421114,1761456667561,-500.0,0.00035189,9]
[392421115,1761456667570,-500.0,0.00035189,9]
[392421116,1761456667580,-500.0,0.00035189,9]
[392421117,1761456667589,-500.0,0.00035189,2]
[392421118,1761456667599,-500.0,0.00035189,9]
[392421119,1761456667609,-500.0,0.00035189,9]
[392421120,1761456667618,-426.82600593,0.00035189,9]
[392421121,1761456667628,-500.0,0.00035189,9]
[392421122,1761456667637,-500.0,0.00035189,9]
[392421123,1761456667646,-500.0,0.00035189,9]
[392421124,1761456667656,-500.0,0.00035189,9]
[392421125,1761456667665,-464.39698795,0.00035189,9]
[392421126,1761456667675,-500.0,0.00035189,9]
[392421127,1761456667684,-752.95,0.00035189,9]
[392421128,1761456667693,-500.0,0.00035189,9]
[392421129,1761456667702,-500.0,0.00035189,9]
[392421130,1761456667711,-500.0,0.00035189,9]
[392421131,1761456667720,-448.93401018,0.00035189,9]
[392421132,1761456667730,-500.0,0.00035189,9]
[392421133,1761456667739,-192.80596179,0.00035189,9]
[392421134,1761456667748,-611.66,0.00035189,9]
[392421135,1761456667757,-500.0,0.00035189,9]
[392421136,1761456667767,-4056.43678105,0.00035227,2]
[392421137,1761456667776,-510.36165508,0.00035257,30]
[392421138,1761456667785,-1000.0,0.00035261,2]
[392421139,1761456667794,-500.0,0.00035264,30]
[392421140,1761456667803,-1342.0,0.00035277,3]
[392421141,1761456667812,-152.97,0.00035296,2]
[392421142,1761456667822,-542.62108798,0.00035299,30]
[392421143,1761456667832,-500.0,0.00035299,2]
[392421144,1761456667842,-12203.9,0.000353,14]
[392421145,1761456667851,-342.36,0.00035331,30]
[392421146,1761456667860,-1511.9,0.00035342,2]
[392421147,1761456667869,-500.0,0.00035342,9]
[392421148,1761456667880,-500.0,0.00035342,9]
[392421149,1761456667889,-500.0,0.00035342,9]
[392421150,1761456667899,-367.67470105,0.00035342,9]
[392421151,1761456667908,-500.0,0.00035342,9]
[392421152,1761456667918,-1799.53,0.00035342,9]
[392421153,1761456667928,-619.52,0.00035342,9]
[392421154,1761456667936,-500.0,0.00035342,9]
[392421155,1761456667946,-254.69229406,0.00035342,9]
[392421156,1761456667956,-500.0,0.00035342,9]
[392421157,1761456667967,-500.0,0.00035342,9]
[392421158,1761456667977,-375.1461107,0.00035361,2]
[392421159,1761456667986,-151.92963874,0.00035368,5]
[392421160,1761456667996,-212.0720997,0.00035427,9]
[392421161,1761456668005,-500.0,0.00035427,9]
[392421162,1761456668015,-699.08,0.00035427,9]
[392421163,1761456668024,-152.0,0.00035444,7]
[392421164,1761456668034,-500.0,0.00035454,9]
[392421165,1761456668043,-500.0,0.00035454,9]
[392421166,1761456668052,-500.0,0.00035454,9]
[392421167,1761456668062,-500.0,0.00035454,9]
[392421168,1761456668071,-500.0,0.00035454,9]
[392421169,1761456668080,-500.0,0.00035454,9]
[392421170,1761456668090,-500.0,0.00035454,9]
[392421171,1761456668099,-500.0,0.00035454,9]
[392421172,1761456668109,-500.0,0.00035454,9]
[392421173,1761456668118,-500.0,0.00035454,9]
[392421174,1761456668127,-500.0,0.00035454,9]
[392421175,1761456668136,-500.0,0.00035454,9]
[392421176,1761456668146,-500.0,0.00035455,9]
[392421177,1761456668155,-500.0,0.00035455,9]
[392421178,1761456668164,-500.0,0.00035455,9]
[392421179,1761456668173,-500.0,0.00035455,9]
[392421180,1761456668186,-500.0,0.00035455,9]
[392421181,1761456668195,-500.0,0.00035455,9]
[392421182,1761456668204,-500.0,0.00035455,9]
[392421183,1761456668214,-573.91,0.00035455,9]
[392421184,1761456668223,-500.0,0.00035455,9]
[392421185,1761456668233,-500.0,0.00035455,9]
[392421186,1761456668242,-500.0,0.00035455,9]
[392421187,1761456668251,-500.0,0.00035455,9]
[392421188,1761456668260,-500.0,0.00035455,9]
[392421189,1761456668271,-500.0,0.00035455,9]
[392421190,1761456668279,-2845.72,0.00035455,9]
[392421191,1761456668288,-2885.33,0.00035455,2]
[392421192,1761456668298,-500.0,0.00035455,9]
[392421193,1761456668307,-293.02,0.00035455,9]
[392421194,1761456668316,-500.0,0.00035455,9]
[392421195,1761456668326,-764.0,0.00035455,9]
[392421196,1761456668337,-500.0,0.00035455,9]
[392421197,1761456668346,-509.33,0.00035455,9]
[392421198,1761456668356,-420.19,0.00035455,15]
[392421199,1761456668366,-499.99,0.00035455,2]
[392421200,1761456668374,-999.99,0.00035455,2]
[392421201,1761456668383,-9999.99,0.00035455,2]
[392421202,1761456668392,-3727.34,0.00035455,2]
[392421203,1761456668401,-9999.99,0.00035455,2]
[392421204,1761456668411,-1581.88,0.00035455,2]
[392421205,1761456668420,-181.56,0.00035455,2]
[392421206,1761456668429,-96249.07,0.00035455,2]
[392421207,1761456668438,-9468.87,0.00035455,2]
[392421208,1761456668448,-2541.8,0.00035455,2]
[392421209,1761456668457,-150.99,0.00035455,2]
[392421210,1761456668466,-1663.46,0.00035455,90]
[392421211,1761456668475,-150.99,0.00035455,30]
[392421212,1761456668484,-9999.99,0.00035455,2]
[392421213,1761456668494,-500.0,0.00035462,9]
[392421214,1761456668503,-500.0,0.00035462,9]
[392421215,1761456668512,-500.0,0.00035462,9]
[392421216,1761456668521,-586.29769427,0.00035462,9]
[392421217,1761456668530,-500.0,0.00035462,9]
[392421218,1761456668539,-500.0,0.00035462,9]
[392421219,1761456668548,-500.0,0.00035462,9]
[392421220,1761456668557,-500.0,0.00035462,9]
[392421221,1761456668566,-500.0,0.00035462,9]
[392421222,1761456668576,-500.0,0.00035462,9]
[392421223,1761456668585,-500.0,0.00035462,9]
[392421224,1761456668594,-520.3331766,0.00035462,9]
[392421225,1761456668603,-500.0,0.00035462,9]
[392421226,1761456668612,-500.0,0.00035462,9]
[392421227,1761456668622,-500.0,0.00035462,9]
[392421228,1761456668631,-500.0,0.00035462,9]
[392421229,1761456668640,-500.0,0.00035462,9]
[392421230,1761456668649,-500.0,0.00035462,9]
[392421231,1761456668658,-500.0,0.00035463,9]
[392421232,1761456668666,-500.0,0.00035463,9]
[392421233,1761456668675,-500.0,0.00035463,9]
[392421234,1761456668684,-500.0,0.00035463,9]
[392421235,1761456668693,-500.0,0.00035463,9]
[392421236,1761456668702,-500.0,0.00035463,9]
[392421237,1761456668711,-500.0,0.00035463,9]
[392421238,1761456668720,-500.0,0.00035463,9]
[392421239,1761456668729,-258.77938625,0.00035463,9]
[392421240,1761456668738,-500.0,0.00035463,9]
[392421241,1761456668747,-500.0,0.00035463,9]
[392421242,1761456668756,-500.0,0.00035463,9]
[392421243,1761456668765,-500.0,0.00035463,9]
[392421244,1761456668774,-500.0,0.00035463,9]
[392421245,1761456668783,-500.0,0.00035463,9]
[392421246,1761456668793,-500.0,0.00035463,9]
[392421247,1761456668802,-688.52,0.00035463,9]
[392421248,1761456668811,-500.0,0.00035463,9]
[392421249,1761456668820,-500.0,0.00035463,9]
[392421250,1761456668936,-500.0,0.00035463,9]
[392421251,1761456668946,-531.13,0.00035463,9]
[392421252,1761456668955,-500.0,0.00035463,9]
[392421253,1761456668965,-358.18307027,0.00035463,9]
[392421254,1761456668974,-500.0,0.00035463,9]
[392421255,1761456668984,-510.02,0.00035463,9]
[392421256,1761456668994,-500.0,0.00035463,9]
[392421257,1761456669004,-500.0,0.00035463,9]
[392421258,1761456669013,-536.81,0.00035463,2]
[392421259,1761456669023,-500.0,0.00035463,9]
[392421260,1761456669032,-263.25645208,0.00035463,9]
[392421261,1761456669042,-500.0,0.00035463,9]
[392421262,1761456669051,-500.0,0.00035463,2]
[392421263,1761456669060,-500.0,0.00035463,9]
[392421264,1761456669069,-500.0,0.00035463,9]
[392421265,1761456669079,-500.0,0.00035463,9]
[392421266,1761456669088,-260.01830456,0.00035463,9]
[392421267,1761456669098,-500.0,0.00035463,9]
[392421268,1761456669108,-500.0,0.00035463,9]
[392421269,1761456669117,-500.0,0.00035463,9]
[392421270,1761456669126,-752.95,0.00035463,9]
[392421271,1761456669136,-500.0,0.00035463,9]
[392421272,1761456669146,-500.0,0.00035463,9]
[392421273,1761456669155,-500.0,0.00035463,9]
[392421274,1761456669164,-500.0,0.00035463,9]
[392421275,1761456669174,-611.66,0.00035463,9]
[392421276,1761456669188,-500.0,0.00035463,9]
[392421277,1761456669197,-793.41,0.000355,14]
[392421278,1761456669206,-507.68870584,0.00035511,2]
[392421279,1761456669216,-696.68,0.00035534,2]
[392421280,1761456669225,-1000.0,0.00035535,2]
[392421281,1761456669235,-7004.58342019,0.00035568,2]
[392421282,1761456669245,-166.66,0.00035597,2]
[392421283,1761456669257,-1511.9,0.00035616,2]
[392421284,1761456669268,-500.0,0.00035616,9]
[392421285,1761456669277,-500.0,0.00035616,9]
[392421286,1761456669286,-500.0,0.00035616,9]
[392421287,1761456669296,-248.253697,0.00035616,9]
[392421288,1761456669305,-1799.53,0.00035616,9]
[392421289,1761456669315,-619.52,0.00035616,9]
[392421290,1761456669325,-500.0,0.00035616,9]
[392421291,1761456669334,-500.0,0.00035616,9]
[392421292,1761456669343,-500.0,0.00035616,9]
[392421293,1761456669352,-547.41,0.00035616,2]
[392421294,1761456669362,-239.149227,0.00035616,2]
[392421295,1761456669371,-4056.43678105,0.00035641,2]
[392421296,1761456669380,-414.6,0.00035644,2]
[392421297,1761456669389,-756.7848,0.0003567,2]
[392421298,1761456669399,-547.92,0.00035671,2]
[392421299,1761456669408,-162.85,0.00035671,2]
[392421300,1761456669417,-151.04,0.00035671,2]
[392421301,1761456669427,-198.77,0.00035671,2]
[392421302,1761456669436,-414.6,0.00035671,2]
[392421303,1761456669445,-547.92,0.00035671,2]
[392421304,1761456669454,-414.6,0.00035671,2]
[392421305,1761456669464,-500.0,0.00035701,9]
[392421306,1761456669474,-699.08,0.00035701,9]
[392421307,1761456669483,-1014.58162557,0.00035712,5]
[392421308,1761456669492,-500.0,0.00035716,7]
[392421309,1761456669501,-1425.0,0.0003572,2]
[392421310,1761456669510,-500.0,0.00035728,9]
[392421311,1761456669519,-500.0,0.00035728,9]
[392421312,1761456669528,-500.0,0.00035728,9]
[392421313,1761456669537,-500.0,0.00035728,9]
[392421314,1761456669546,-500.0,0.00035728,2]
[392421315,1761456669555,-500.0,0.00035728,9]
[392421316,1761456669563,-500.0,0.00035728,9]
[392421317,1761456669572,-500.0,0.00035728,9]